bitfinex-derivatives/quotes_BTCF0:USTF0_20251103
["timestamp","ask_amount","ask_price","bid_price","bid_amount"]
[1762173855926,0.59530786,107950.0,107940.0,0.1487685]
[1762173856118,0.59830786,107950.0,107940.0,0.1487685]
[1762173856428,0.7117197,107950.0,107940.0,0.05611]
[1762173857230,1.0725197,107950.0,107940.0,0.05611]
[1762173857425,1.0725197,107950.0,107940.0,0.02149]
[1762173857632,0.1106585,107940.0,107930.0,0.4698009]
[1762173857824,0.69828218,107940.0,107930.0,0.4698009]
[1762173859130,0.69828218,107940.0,107930.0,0.37714]
[1762173859633,0.69828218,107940.0,107930.0,0.4698072]
[1762173860732,0.69828218,107940.0,107930.0,0.37714]
[1762173860930,0.69828218,107940.0,107930.0,0.0569]
[1762173861836,0.77081151,107940.0,107930.0,0.0569]
[1762173862226,0.54398783,107940.0,107930.0,0.149567]
[1762173862426,0.77081151,107940.0,107930.0,0.149567]
[1762173867137,0.77081151,107940.0,107930.0,0.0569]
[1762173867736,0.77081151,107940.0,107930.0,0.04336]
[1762173868049,0.77081151,107940.0,107930.0,0.02149]
[1762173868435,0.77081151,107940.0,107930.0,0.04284]
[1762173868832,0.1106671,107930.0,107920.0,0.46980591]
[1762173869033,0.58487894,107930.0,107920.0,0.46980591]
[1762173870544,0.58487894,107930.0,107920.0,0.47180591]
[1762173870742,0.58487894,107930.0,107920.0,0.47480591]
[1762173874737,0.58487894,107930.0,107920.0,0.38213411]
[1762173875449,0.58487894,107930.0,107920.0,0.47480971]
[1762173875952,0.49221184,107930.0,107920.0,0.47480971]
[1762173876849,0.58487894,107930.0,107920.0,0.47480971]
[1762173877149,0.58487894,107930.0,107920.0,0.06185411]
[1762173877346,0.69829078,107930.0,107920.0,0.06185411]
[1762173877556,0.58487894,107930.0,107920.0,0.06185411]
[1762173878748,0.60737138,107930.0,107920.0,0.06185411]
[1762173879439,0.60737138,107930.0,107920.0,0.15452971]
[1762173879950,0.58487894,107930.0,107920.0,0.15452971]
[1762173880139,0.58487894,107930.0,107920.0,0.06185411]
[1762173880335,0.60738593,107930.0,107920.0,0.06185411]
[1762173881147,0.58487894,107930.0,107920.0,0.06185411]
[1762173881348,0.60737715,107930.0,107920.0,0.06185411]
[1762173885041,0.61337715,107930.0,107920.0,0.02696411]
[1762173885349,1.04710899,107930.0,107920.0,0.00509411]
[1762173885753,1.04710899,107930.0,107920.0,0.02793411]
[1762173887255,1.04614311,107930.0,107920.0,0.02793411]
[1762173887750,1.27778311,107930.0,107920.0,0.00509411]
[1762173888142,1.04614311,107930.0,107920.0,0.00509411]
[1762173889042,1.27778311,107930.0,107920.0,0.00509411]
[1762173889751,1.04614311,107930.0,107920.0,0.00509411]
[1762173889948,1.27778311,107930.0,107920.0,0.00509411]
[1762173890643,1.30274962,107930.0,107920.0,0.00509411]
[1762173891946,1.30274962,107930.0,107920.0,0.00309411]
[1762173892445,0.1087446,107910.0,107900.0,0.51807873]
[1762173892647,1.05716828,107910.0,107900.0,0.51807873]
[1762173893657,1.05723382,107910.0,107900.0,0.51807873]
[1762173894557,1.05723382,107910.0,107900.0,0.52107873]
[1762173895159,1.05723382,107910.0,107900.0,0.52607873]
[1762173896154,1.05723382,107910.0,107900.0,0.43338603]
[1762173898460,1.05823382,107910.0,107900.0,0.42838603]
[1762173898963,1.05823382,107910.0,107900.0,0.42538603]
[1762173901453,0.73872554,107910.0,107900.0,0.51807913]
[1762173901654,1.05823382,107910.0,107900.0,0.51807913]
[1762173902160,1.05823382,107910.0,107900.0,0.42538603]
[1762173905350,1.05823382,107910.0,107900.0,0.51807913]
[1762173905960,1.05823382,107910.0,107900.0,0.42538603]
[1762173907056,1.05823382,107910.0,107900.0,0.10506603]
[1762173907456,1.05823382,107910.0,107900.0,0.19775923]
[1762173907773,1.05823382,107910.0,107900.0,0.10506603]
[1762173909455,1.05823382,107910.0,107900.0,0.19775923]
[1762173909866,1.08074403,107910.0,107900.0,0.19775923]
[1762173911168,1.08074403,107910.0,107900.0,0.10506603]
[1762173912261,1.08074403,107910.0,107900.0,0.19775993]
[1762173916368,0.95480977,107910.0,107900.0,0.19775993]
[1762173921267,0.95480977,107910.0,107900.0,0.10506603]
[1762173921465,0.95480977,107910.0,107900.0,0.42530603]
[1762173923163,0.95480977,107910.0,107900.0,0.04641603]
[1762173923974,0.95480977,107910.0,107900.0,0.06805603]
[1762173925970,0.95480977,107910.0,107900.0,0.04641603]
[1762173926174,1.30001628,107910.0,107900.0,0.04641603]
[1762173927166,1.53169628,107910.0,107900.0,0.04641603]
[1762173929978,1.53469628,107910.0,107900.0,0.04641603]
[1762173931073,0.108754,107900.0,107890.0,0.39393614]
[1762173931273,0.5930577,107900.0,107890.0,0.41513614]
[1762173931573,0.5930577,107900.0,107890.0,0.05137614]
[1762173931774,1.6087626,107890.0,107880.0,0.10555153]
[1762173931969,2.19395572,107890.0,107880.0,0.10555153]
[1762173932772,2.27761128,107890.0,107880.0,0.10555153]
[1762173932977,2.59785128,107890.0,107880.0,0.10555153]
[1762173933780,2.59785128,107890.0,107880.0,0.10855153]
[1762173933974,2.59785128,107890.0,107880.0,0.20126273]
[1762173935583,2.27761128,107890.0,107880.0,0.20126273]
[1762173935982,2.17672186,107890.0,107880.0,0.20126273]
[1762173937579,2.06150905,107890.0,107880.0,0.52150273]
[1762173937780,1.97897355,107890.0,107880.0,0.52150273]
[1762173937983,0.00925413,107890.0,107880.0,0.5879445]
[1762173939382,0.10195673,107890.0,107880.0,0.5879445]
[1762173939586,0.11014355,107890.0,107880.0,0.5879445]
[1762173939886,0.00925413,107890.0,107880.0,0.5879445]
[1762173941778,0.37706,107910.0,107900.0,0.149444]
[1762173942084,0.48411047,107910.0,107900.0,0.469684]
[1762173942278,0.46168942,107910.0,107900.0,0.469684]
[1762173942485,0.46981942,107910.0,107900.0,0.469684]
[1762173942878,0.3608,107910.0,107900.0,0.469684]
[1762173943089,1.50914717,107920.0,107910.0,0.1494354]
[1762173944079,0.13125659,107920.0,107910.0,0.1494354]
[1762173944278,0.00914717,107920.0,107910.0,0.1494354]
[1762173944481,2.17302938,107930.0,107920.0,0.1494268]
[1762173944681,2.19543313,107930.0,107920.0,0.4696668]
[1762173944877,0.02240375,107930.0,107920.0,0.4696668]
[1762173945081,0.02240375,107930.0,107920.0,0.8304668]
[1762173945277,1.00574674,107940.0,107930.0,0.1494182]
[1762173945482,1.01499797,107940.0,107930.0,0.1494182]
[1762173946090,1.11588739,107940.0,107930.0,0.1494182]
[1762173946492,1.13488739,107940.0,107930.0,0.1504182]
[1762173947880,1.03399797,107940.0,107930.0,0.4706182]
[1762173948084,1.13488739,107940.0,107930.0,0.4706182]
[1762173952593,1.14655739,107940.0,107930.0,0.001]
[1762173952893,1.16890097,107940.0,107930.0,0.32116]
[1762173953189,1.14655739,107940.0,107930.0,0.32116]
[1762173955792,1.14655739,107940.0,107930.0,0.001]
[1762173957893,1.13488739,107940.0,107930.0,0.02332]
[1762173958089,1.13488739,107940.0,107930.0,0.05791]
[1762173958698,1.13488739,107940.0,107930.0,0.1505782]
[1762173959799,1.15722701,107940.0,107930.0,0.1505782]
[1762173960198,1.13488739,107940.0,107930.0,0.1505782]
[1762173960901,1.04222779,107940.0,107930.0,0.1505782]
[1762173961393,1.13488739,107940.0,107930.0,0.1505782]
[1762173964302,1.1572422,107940.0,107930.0,0.1505782]
[1762173964489,0.55635546,107940.0,107930.0,0.1505782]
[1762173964694,0.53400065,107940.0,107930.0,0.1505782]
[1762173965803,0.17320065,107940.0,107930.0,0.1505782]
[1762173966302,0.15225065,107940.0,107930.0,0.1505782]
[1762173966601,0.15188065,107940.0,107930.0,0.1505782]
[1762173966907,0.15188065,107940.0,107930.0,0.7430182]
[1762173966908,0.019,107940.0,107930.0,0.7430182]
[1762173967202,0.00601,107950.0,107940.0,0.1489697]
[1762173967402,0.00601,107950.0,107940.0,0.4690897]
[1762173968204,0.0150657,107950.0,107940.0,0.4690897]
[1762173968394,0.00601,107950.0,107940.0,0.4690897]
[1762173968594,0.02912,107950.0,107940.0,0.4690897]
[1762173969198,0.00601,107950.0,107940.0,0.4690897]
[1762173969804,0.00601,107950.0,107940.0,0.8298897]
[1762173970504,0.00701,107950.0,107940.0,0.8298897]
[1762173970896,0.00701,107950.0,107940.0,0.87967089]
[1762173971095,0.00701,107950.0,107940.0,1.03737089]
[1762173971398,0.05286,107950.0,107940.0,1.03737089]
[1762173971608,0.1455111,107950.0,107940.0,1.03737089]
[1762173971999,0.05286,107950.0,107940.0,1.03737089]
[1762173972201,0.03012,107950.0,107940.0,1.03737089]
[1762173973108,0.00701,107950.0,107940.0,1.03737089]
[1762173973305,0.03012,107950.0,107940.0,1.03737089]
[1762173973507,0.05286,107950.0,107940.0,1.03737089]
[1762173974405,0.00701,107950.0,107940.0,0.9875897]
[1762173975503,0.00701,107950.0,107940.0,1.13826031]
[1762173975698,0.00701,107950.0,107940.0,1.03737089]
[1762173976004,0.00701,107950.0,107940.0,0.9875897]
[1762173976205,0.00701,107950.0,107940.0,1.03736297]
[1762173977206,0.00701,107950.0,107940.0,1.26896297]
[1762173978108,0.00601,107950.0,107940.0,1.27096297]
[1762173978301,0.00601,107950.0,107940.0,1.38231811]
[1762173978606,0.25786604,107950.0,107940.0,0.67648297]
[1762173978807,0.25786604,107950.0,107940.0,0.6267097]
[1762173980509,0.16521514,107950.0,107940.0,0.67648297]
[1762173980711,0.74524128,107950.0,107940.0,0.6138196]
[1762173981101,0.74524128,107950.0,107940.0,0.20112]
[1762173981308,0.74524128,107950.0,107940.0,0.49946]
[1762173981504,0.74524128,107950.0,107940.0,0.47774]
[1762173981708,0.74524128,107950.0,107940.0,0.49946]
[1762173981910,0.74524128,107950.0,107940.0,0.6128195]
[1762173982310,0.74924128,107950.0,107940.0,0.6068195]
[1762173982816,0.75024128,107950.0,107940.0,0.4561195]
[1762173984313,0.74624128,107950.0,107940.0,0.36346]
[1762173984513,0.14922283,107940.0,107930.0,0.136081]
[1762173984712,0.73673311,107940.0,107930.0,0.456201]
[1762173986114,0.73673311,107940.0,107930.0,0.457201]
[1762173986618,0.63336028,107940.0,107930.0,0.470221]
[1762173986916,0.63181028,107940.0,107930.0,0.470221]
[1762173987215,0.79750294,107940.0,107930.0,0.470221]
[1762173987605,0.81121294,107940.0,107930.0,0.470221]
[1762173988405,0.81121294,107940.0,107930.0,0.457201]
[1762173988914,0.02835,107950.0,107940.0,0.1519994]
[1762173989115,0.14170514,107950.0,107940.0,0.26535454]
[1762173989316,0.14170514,107950.0,107940.0,0.31512781]
[1762173989515,0.11936514,107950.0,107940.0,0.31512781]
[1762173990305,0.11936514,107950.0,107940.0,0.67592781]
[1762173990510,0.12036514,107950.0,107940.0,0.67592781]
[1762173991818,0.12336514,107950.0,107940.0,0.67592781]
[1762173994422,0.12336514,107950.0,107940.0,0.82562781]
[1762173994623,0.01001,107950.0,107940.0,0.77585454]
[1762173994822,0.01001,107950.0,107940.0,0.84229631]
[1762173995919,0.00901,107950.0,107940.0,0.84229631]
[1762173996125,0.00901,107950.0,107940.0,0.84329631]
[1762173996623,0.00601,107950.0,107940.0,0.84329631]
[1762173997012,0.00933155,107960.0,107950.0,0.1503609]
[1762173997226,0.52574602,107970.0,107960.0,0.1503523]
[1762173997521,2.02574602,107970.0,107960.0,0.1503523]
[1762173997722,0.52574602,107970.0,107960.0,0.5610013]
[1762173998424,0.53488415,107970.0,107960.0,0.5610013]
[1762173998722,0.53488415,107970.0,107960.0,0.2002013]
[1762173999311,0.53688415,107970.0,107960.0,0.2002013]
[1762173999822,0.53688415,107970.0,107960.0,0.1503523]
[1762174001730,0.54388415,107970.0,107960.0,0.1503523]
[1762174002222,0.54388415,107970.0,107960.0,0.26370744]
[1762174002524,0.54388415,107970.0,107960.0,0.62450744]
[1762174002731,0.54388415,107970.0,107960.0,0.5111523]
[1762174003833,0.54388415,107970.0,107960.0,0.62450744]
[1762174004528,0.54388415,107970.0,107960.0,0.67435644]
[1762174004721,0.54388415,107970.0,107960.0,0.5610013]
[1762174005232,0.54388415,107970.0,107960.0,0.1503523]
[1762174006130,0.55727415,107970.0,107960.0,0.1368223]
[1762174006430,0.76326309,107970.0,107960.0,0.4568223]
[1762174006833,0.64990795,107970.0,107960.0,0.4568223]
[1762174007034,0.76326309,107970.0,107960.0,0.4568223]
[1762174007222,0.67062929,107970.0,107960.0,0.4568223]
[1762174007533,0.64990805,107970.0,107960.0,0.4568223]
[1762174009133,0.55727415,107970.0,107960.0,0.4568223]
[1762174009830,0.55727415,107970.0,107960.0,0.5066713]
[1762174010029,0.64990805,107970.0,107960.0,0.5066713]
[1762174012033,0.55727415,107970.0,107960.0,0.5202013]
[1762174012238,0.55727415,107970.0,107960.0,0.2002013]
[1762174012431,0.55727415,107970.0,107960.0,0.5201613]
[1762174013335,0.91807415,107970.0,107960.0,0.5201613]
[1762174013737,1.01070805,107970.0,107960.0,0.5201613]
[1762174013936,1.01070805,107970.0,107960.0,0.2002013]
[1762174014133,1.01070805,107970.0,107960.0,0.5201613]
[1762174015237,1.12406319,107970.0,107960.0,0.5201613]
[1762174017441,1.03142929,107970.0,107960.0,0.5201613]
[1762174017838,1.12406319,107970.0,107960.0,0.5201613]
[1762174018150,1.01070805,107970.0,107960.0,0.5201613]
[1762174018343,1.01070805,107970.0,107960.0,0.5066313]
[1762174019040,1.01070805,107970.0,107960.0,0.5201713]
[1762174019237,1.01070805,107970.0,107960.0,0.5066313]
[1762174019738,1.01070805,107970.0,107960.0,0.4567823]
[1762174019945,1.01070805,107970.0,107960.0,0.52322407]
[1762174020134,1.12406319,107970.0,107960.0,0.52322407]
[1762174024042,0.89554602,107970.0,107960.0,0.21680407]
[1762174024348,0.012,107970.0,107960.0,1.24247921]
[1762174024548,0.012,107970.0,107960.0,1.17603744]
[1762174024753,0.012,107970.0,107960.0,1.25917551]
[1762174024943,0.012,107970.0,107960.0,1.17603744]
[1762174025139,0.13510514,107990.0,107980.0,0.1363853]
[1762174025442,0.15633514,107990.0,107980.0,0.51559578]
[1762174025649,0.16580357,107990.0,107980.0,0.8265153]
[1762174025842,0.16580357,107990.0,107980.0,0.93987044]
[1762174026042,0.16580357,107990.0,107980.0,0.4657153]
[1762174026347,0.63229027,107990.0,107980.0,0.4657153]
[1762174026546,0.64529027,107990.0,107980.0,0.51558481]
[1762174026750,0.64529027,107990.0,107980.0,0.4657153]
[1762174026946,0.64729027,107990.0,107980.0,0.4657153]
[1762174027142,0.64729027,107990.0,107980.0,0.51557294]
[1762174028040,0.64729027,107990.0,107980.0,0.4657153]
[1762174028242,0.64729027,107990.0,107980.0,0.51556746]
[1762174028444,0.18087357,107990.0,107980.0,0.51556746]
[1762174029044,0.27349027,107990.0,107980.0,0.51556746]
[1762174032349,0.1486753,107980.0,107970.0,0.1144738]
[1762174032550,0.73618558,107980.0,107970.0,0.07168022]
[1762174032756,0.73618558,107980.0,107970.0,0.31992]
[1762174033756,0.73618558,107980.0,107970.0,0.4125539]
[1762174033945,0.73618558,107980.0,107970.0,0.4563139]
[1762174034452,0.62283044,107980.0,107970.0,0.4563139]
[1762174034651,0.73618558,107980.0,107970.0,0.4563139]
[1762174035157,0.73618558,107980.0,107970.0,0.36368]
[1762174035352,0.1486839,107970.0,107960.0,0.18624242]
[1762174035548,0.73619418,107970.0,107960.0,0.41352022]
[1762174036249,0.1486925,107960.0,107950.0,0.18624422]
[1762174036555,0.62284764,107960.0,107950.0,0.41352022]
[1762174037246,0.62284764,107960.0,107950.0,0.04984022]
[1762174037449,0.148701,107950.0,107940.0,0.18625332]
[1762174037642,0.62285614,107950.0,107940.0,0.50617332]
[1762174039153,0.51713514,107950.0,107940.0,0.51971332]
[1762174040360,0.40378,107950.0,107940.0,0.51971332]
[1762174043159,0.40378,107950.0,107940.0,0.52271332]
[1762174043359,0.3608,107950.0,107940.0,0.52471332]
[1762174044362,0.38255,107950.0,107940.0,0.52471332]
[1762174044660,0.40378,107950.0,107940.0,0.52471332]
[1762174045360,0.38255,107950.0,107940.0,0.52471332]
[1762174045561,0.3608,107950.0,107940.0,0.52471332]
[1762174045861,0.3839,107950.0,107940.0,0.52471332]
[1762174046062,0.40542,107950.0,107940.0,0.52471332]
[1762174046261,0.04462,107950.0,107940.0,0.88551332]
[1762174047361,0.04462,107950.0,107940.0,1.03521332]
[1762174047658,0.04462,107960.0,107950.0,0.1508209]
[1762174047864,0.04462,107960.0,107950.0,0.20066112]
[1762174048172,0.40542,107970.0,107960.0,0.05817]
[1762174048464,0.04462,107970.0,107960.0,0.4707723]
[1762174048963,0.04462,107970.0,107960.0,0.88141252]
[1762174049565,0.04462,107970.0,107960.0,0.52061252]
[1762174049960,0.1372537,107970.0,107960.0,0.52061252]
[1762174050361,0.61188854,107970.0,107960.0,0.36459]
[1762174050966,0.1503122,107960.0,107950.0,0.1372784]
[1762174051168,0.61189704,107960.0,107950.0,0.1372784]
[1762174051465,0.61189704,107960.0,107950.0,0.4572384]
[1762174053261,0.51925484,107960.0,107950.0,0.4572384]
[1762174053461,0.61189704,107960.0,107950.0,0.4572384]
[1762174053660,0.61189704,107960.0,107950.0,0.4592384]
[1762174054669,0.61189704,107960.0,107950.0,0.4622384]
[1762174055173,0.51925484,107960.0,107950.0,0.4622384]
[1762174055472,0.51925484,107960.0,107950.0,0.4758884]
[1762174056956,0.51925484,107960.0,107950.0,0.1559284]
[1762174057161,0.51925484,107960.0,107950.0,0.4758884]
[1762174058367,0.51925484,107960.0,107950.0,0.88652862]
[1762174058368,0.04462,107960.0,107950.0,0.88652862]
[1762174060372,0.04462,107960.0,107950.0,0.8366884]
[1762174062173,0.04462,107960.0,107950.0,0.9031957]
[1762174063669,0.50493484,107970.0,107960.0,0.1510822]
[1762174063875,0.50493484,107970.0,107960.0,0.20094145]
[1762174064472,0.59756854,107970.0,107960.0,0.20094145]
[1762174064671,0.61122854,107970.0,107960.0,0.20094145]
[1762174065378,0.61122854,107970.0,107960.0,0.41460925]
[1762174065674,0.61122854,107970.0,107960.0,0.50725145]
[1762174066474,0.61122854,107970.0,107960.0,0.46246145]
[1762174069567,0.61122854,107970.0,107960.0,0.48579145]
[1762174069771,0.63337016,107970.0,107960.0,0.48579145]
[1762174069968,0.63337016,107970.0,107960.0,0.4359322]
[1762174071569,0.63337016,107970.0,107960.0,0.34329]
[1762174072685,0.63337016,107970.0,107960.0,0.4573925]
[1762174073777,0.63337016,107970.0,107960.0,0.50725175]
[1762174074881,0.63337016,107970.0,107960.0,0.52090175]
[1762174080679,0.52707646,107970.0,107960.0,0.52090175]
[1762174080984,0.40415,107970.0,107960.0,0.52090175]
[1762174081186,0.02173,107970.0,107960.0,0.52090175]
[1762174081489,0.4979509,107980.0,107970.0,0.1497939]
[1762174081687,0.4979509,107980.0,107970.0,0.19970651]
[1762174081988,0.61183574,107980.0,107970.0,0.19970651]
[1762174082787,0.61483574,107980.0,107970.0,0.19970651]
[1762174083787,0.63681035,107980.0,107970.0,0.19970651]
[1762174084178,0.53107945,107980.0,107970.0,0.19970651]
[1762174084391,0.62370475,107980.0,107970.0,0.19970651]
[1762174084791,0.62070475,107980.0,107970.0,0.19970651]
[1762174084993,0.52807945,107980.0,107970.0,0.19970651]
[1762174086292,0.62070475,107980.0,107970.0,0.19970651]
[1762174088692,0.52807945,107980.0,107970.0,0.19970651]
[1762174088893,0.62070475,107980.0,107970.0,0.19970651]
[1762174089281,0.62069328,107980.0,107970.0,0.19970651]
[1762174089987,0.59873014,107980.0,107970.0,0.19970651]
[1762174091393,0.61183014,107980.0,107970.0,0.18687631]
[1762174092397,0.50610484,107980.0,107970.0,0.19970631]
[1762174093695,0.59872994,107980.0,107970.0,0.19970631]
[1762174093895,0.61182994,107980.0,107970.0,0.19970631]
[1762174096491,0.61182994,107980.0,107970.0,0.18687631]
[1762174096687,0.61182994,107980.0,107970.0,0.07223261]
[1762174096994,0.61182994,107980.0,107970.0,0.36979261]
[1762174097199,0.6337757,107980.0,107970.0,0.31988]
[1762174097597,0.1502538,107970.0,107960.0,0.18688471]
[1762174097791,0.61183864,107970.0,107960.0,0.50676471]
[1762174098897,0.61183864,107970.0,107960.0,0.50976471]
[1762174099099,0.61183864,107970.0,107960.0,0.51176471]
[1762174099894,0.61183864,107970.0,107960.0,0.4618521]
[1762174100402,0.7377848,107970.0,107960.0,0.4618521]
[1762174101202,0.75973556,107970.0,107960.0,0.51176471]
[1762174101594,0.75973556,107970.0,107960.0,0.4618521]
[1762174102207,0.75973556,107970.0,107960.0,0.51176471]
[1762174106301,0.75973556,107970.0,107960.0,0.52571471]
[1762174106600,0.74663556,107970.0,107960.0,0.52571471]
[1762174107003,0.632051,107970.0,107960.0,0.52571471]
[1762174107209,0.5186855,107970.0,107960.0,0.52571471]
[1762174107409,0.4996751,107980.0,107970.0,0.1506137]
[1762174107608,0.63499845,107980.0,107970.0,0.1506137]
[1762174108001,0.63499845,107980.0,107970.0,0.20052631]
[1762174108405,0.64872845,107980.0,107970.0,0.20052631]
[1762174109913,0.6267706,107980.0,107970.0,0.20052631]
[1762174113220,0.64873023,107980.0,107970.0,0.20052631]
[1762174113519,0.63500023,107980.0,107970.0,0.20052631]
[1762174113921,0.1596155,107980.0,107970.0,0.20052631]
[1762174114123,0.1363055,107980.0,107970.0,0.56132631]
[1762174114418,0.1580055,107980.0,107970.0,0.56132631]
[1762174118224,0.2506306,107980.0,107970.0,0.56132631]
[1762174119124,0.2506306,107980.0,107970.0,0.20052631]
[1762174119824,0.1580055,107980.0,107970.0,0.20052631]
[1762174120020,0.17996035,107980.0,107970.0,0.20052631]
[1762174120719,0.1580055,107980.0,107970.0,0.20052631]
[1762174121127,0.1580055,107980.0,107970.0,0.56132631]
[1762174122225,0.52694938,107990.0,107980.0,0.1498055]
[1762174122535,0.52694938,107990.0,107980.0,0.63290036]
[1762174122825,0.16614938,107990.0,107980.0,0.943771]
[1762174123031,0.16614938,107990.0,107980.0,1.0102783]
[1762174123328,0.16914938,107990.0,107980.0,1.0102783]
[1762174124232,0.16914938,107990.0,107980.0,0.943771]
[1762174124931,0.16914938,107990.0,107980.0,0.99366014]
[1762174125427,0.17014938,107990.0,107980.0,0.99366014]
[1762174125932,0.16614938,107990.0,107980.0,0.99566014]
[1762174126132,0.16614938,107990.0,107980.0,0.948771]
[1762174126328,0.16614938,107990.0,107980.0,0.99864402]
[1762174126833,0.05278388,107990.0,107980.0,0.99864402]
[1762174131738,0.16614938,107990.0,107980.0,0.99864402]
[1762174132433,0.05278388,107990.0,107980.0,0.99864402]
[1762174132641,0.16614938,107990.0,107980.0,0.99864402]
[1762174137942,0.16614938,107990.0,107980.0,0.88527852]
[1762174138242,0.16614938,107990.0,107980.0,0.63784402]
[1762174138637,0.16614938,107990.0,107980.0,0.52447852]
[1762174138932,0.27257508,107990.0,107980.0,0.09857302]
[1762174139241,0.63337508,107990.0,107980.0,0.41829302]
[1762174139445,0.63337508,107990.0,107980.0,0.51091732]
[1762174140442,0.54075938,107990.0,107980.0,0.50791732]
[1762174140648,0.54075938,107990.0,107980.0,0.50591732]
[1762174141141,0.63337508,107990.0,107980.0,0.50591732]
[1762174142543,0.63337508,107990.0,107980.0,0.41329302]
[1762174143040,0.63337508,107990.0,107980.0,0.36959302]
[1762174143245,0.1504843,107980.0,107970.0,0.22118302]
[1762174143448,0.7380153,107980.0,107970.0,0.56297682]
[1762174143641,0.6246498,107980.0,107970.0,0.56297682]
[1762174144546,0.1511729,107970.0,107960.0,0.04994682]
[1762174144846,0.1511729,107970.0,107950.0,0.41327682]
[1762174144847,0.1511215,107960.0,107950.0,0.41327682]
[1762174145143,0.625287,107960.0,107950.0,0.36333]
[1762174145334,0.64723283,107960.0,107950.0,0.36333]
[1762174145539,0.64723283,107960.0,107950.0,0.31972]
[1762174145740,0.05839,107950.0,107940.0,0.50593542]
[1762174145935,0.5325555,107950.0,107940.0,0.50593542]
[1762174147246,0.5325555,107950.0,107940.0,0.50893542]
[1762174147543,0.5325555,107950.0,107940.0,0.51493542]
[1762174148842,0.6252057,107950.0,107940.0,0.42227682]
[1762174149148,0.7385712,107950.0,107940.0,0.009]
[1762174150343,0.6252057,107950.0,107940.0,0.009]
[1762174150638,0.5325555,107950.0,107940.0,0.009]
[1762174150837,0.5325555,107950.0,107940.0,0.1591587]
[1762174151036,0.1580955,107950.0,107940.0,0.56990552]
[1762174152130,0.04473,107950.0,107940.0,0.68327102]
[1762174153343,0.1580955,107950.0,107940.0,0.68327102]
[1762174153938,0.4961655,107960.0,107950.0,0.1362601]
[1762174154136,0.5188955,107960.0,107950.0,0.4699101]
[1762174154633,0.625347,107960.0,107950.0,0.4699101]
[1762174154835,0.625347,107960.0,107950.0,0.37726]
[1762174155244,0.625347,107960.0,107950.0,0.38026]
[1762174156938,0.625347,107960.0,107950.0,0.38126]
[1762174157142,0.625347,107960.0,107950.0,0.43120682]
[1762174157739,0.6253469,107960.0,107950.0,0.52385682]
[1762174157938,0.6253469,107960.0,107950.0,0.43120682]
[1762174158648,0.6253469,107960.0,107950.0,0.52385722]
[1762174159941,0.6253469,107960.0,107950.0,0.4739104]
[1762174161742,0.40553,107960.0,107950.0,0.4739104]
[1762174161948,0.5188955,107960.0,107950.0,0.4739104]
[1762174162147,0.5188955,107960.0,107950.0,0.52385722]
[1762174162445,0.50629995,107960.0,107950.0,0.52385722]
[1762174164956,0.52006995,107960.0,107950.0,0.52385722]
[1762174165160,0.4193,107960.0,107950.0,0.52385722]
[1762174165549,0.52006995,107960.0,107950.0,0.52385722]
[1762174166654,0.50629995,107960.0,107950.0,0.52385722]
[1762174167751,0.51993995,107960.0,107950.0,0.52385722]
[1762174167963,0.15913995,107960.0,107950.0,0.52385722]
[1762174169453,0.25178145,107960.0,107950.0,0.52385722]
[1762174170152,0.61258145,107960.0,107950.0,0.52385722]
[1762174172062,0.61258145,107960.0,107950.0,0.50996722]
[1762174172453,0.61258145,107960.0,107950.0,0.41731682]
[1762174173556,0.61258145,107960.0,107950.0,0.50996702]
[1762174174261,0.61258145,107960.0,107950.0,0.4600202]
[1762174175165,0.51993995,107960.0,107950.0,0.4600202]
[1762174175566,0.51993995,107960.0,107950.0,0.4731902]
[1762174178359,0.14549995,107960.0,107950.0,0.4731902]
[1762174178865,0.15885995,107960.0,107950.0,0.4731902]
[1762174183572,0.47537995,107970.0,107950.0,0.4731902]
[1762174183760,0.02106,107980.0,107970.0,0.1493533]
[1762174183956,0.4862285,107990.0,107980.0,0.1493447]
[1762174184162,0.43422536,107990.0,107980.0,0.19937858]
[1762174184361,0.41216239,107990.0,107980.0,0.19937858]
[1762174186365,0.42552239,107990.0,107980.0,0.19937858]
[1762174186564,0.41216239,107990.0,107980.0,0.19937858]
[1762174187268,0.51493234,107990.0,107980.0,0.19937858]
[1762174187469,0.60754854,107990.0,107980.0,0.19937858]
[1762174187769,0.60854854,107990.0,107980.0,0.19937858]
[1762174187972,0.51593234,107990.0,107980.0,0.19937858]
[1762174189375,0.41516239,107990.0,107980.0,0.19937858]
[1762174189675,0.05436239,107990.0,107980.0,0.19937858]
[1762174190473,0.05436239,107990.0,107980.0,0.56017858]
[1762174190659,0.04526,107990.0,107980.0,0.56017858]
[1762174191171,0.04526,107990.0,107980.0,0.66094853]
[1762174191765,0.04526,107990.0,107980.0,0.56017858]
[1762174194484,0.003,107990.0,107980.0,0.56017858]
[1762174195764,0.003,107990.0,107980.0,0.66094853]
[1762174196168,0.003,107990.0,107980.0,1.04216853]
[1762174196370,0.0477,108010.0,108000.0,0.1459076]
[1762174196669,0.04280801,108010.0,108000.0,0.4655476]
[1762174197978,0.04680801,108010.0,108000.0,0.4655476]
[1762174198178,0.05480801,108010.0,108000.0,0.4655476]
[1762174198477,0.06404099,108010.0,108000.0,0.4655476]
[1762174199570,0.06404099,108010.0,108000.0,0.8263476]
[1762174200678,0.012,108010.0,108000.0,0.8263476]
[1762174200978,0.84534484,108030.0,108020.0,0.1459104]
[1762174200979,0.4055,108030.0,108020.0,0.1459104]
[1762174201189,0.0447,108030.0,108020.0,0.4655104]
[1762174201772,0.02218,108030.0,108020.0,0.4655104]
[1762174201987,0.5114333,108040.0,108030.0,0.1509819]
[1762174202177,0.41886,108040.0,108030.0,0.1377919]
[1762174202572,0.5114333,108040.0,108030.0,0.1377919]
[1762174202972,0.61220325,108040.0,108030.0,0.1377919]
[1762174203486,0.1510219,108030.0,108020.0,0.04521]
[1762174203777,0.1510219,108030.0,108020.0,0.36477]
[1762174203778,0.61859185,108030.0,108020.0,0.36477]
[1762174204082,0.61859185,108030.0,108020.0,0.4573604]
[1762174204381,0.61859185,108030.0,108020.0,0.04521]
[1762174204571,0.151039,108010.0,108000.0,0.04521]
[1762174204778,0.61260895,108010.0,108000.0,0.36477]
[1762174205181,0.61260895,108010.0,108000.0,0.4573776]
[1762174205387,0.62180261,108010.0,108000.0,0.4573776]
[1762174206482,0.52920361,108010.0,108000.0,0.4573776]
[1762174206679,0.41469366,108010.0,108000.0,0.4705676]
[1762174207085,0.42843366,108010.0,108000.0,0.4705676]
[1762174207385,0.52103266,108010.0,108000.0,0.4705676]
[1762174207574,0.52103266,108010.0,108000.0,0.4573776]
[1762174207778,0.62180261,108010.0,108000.0,0.4573776]
[1762174208488,0.62280261,108010.0,108000.0,0.4573776]
[1762174208781,0.53020361,108010.0,108000.0,0.4573776]
[1762174209180,0.16940361,108010.0,108000.0,0.4573776]
[1762174209784,0.26200261,108010.0,108000.0,0.4573776]
[1762174213188,0.16940361,108010.0,108000.0,0.4705676]